bitfinex/quotes_ETHUSD_20250731
["timestamp","ask_amount","ask_price","bid_price","bid_amount"]
[1754004946834,0.1352,3707.2,3706.9,0.4844]
[1754004947031,0.1352,3707.2,3707.0,0.4844]
[1754004947250,0.1352,3707.2,3707.1,0.4844]
[1754004947451,0.1352,3707.2,3706.6,0.4844]
[1754004947618,3.0,3707.5,3706.6,0.4844]
[1754004947958,0.1352,3707.0,3706.6,0.4844]
[1754004948112,0.1352,3707.0,3706.7,0.4844]
[1754004948312,0.1352,3707.0,3706.8,0.4844]
[1754004948516,0.1352,3707.0,3706.9,0.49785413]
[1754004948732,0.1352,3707.5,3706.9,0.6196]
[1754004948947,0.1352,3707.5,3707.0,0.0134494]
[1754004949153,0.1352,3707.5,3707.1,0.4844]
[1754004949519,0.1352,3707.5,3707.2,0.4844]
[1754004949719,0.1352,3707.5,3706.9,0.1352]
[1754004949956,0.02,3707.9,3707.0,0.4844]
[1754004950122,0.1352,3707.7,3707.2,0.1352]
[1754004950323,0.1352,3707.7,3707.3,0.4844]
[1754004950524,0.1352,3707.7,3707.4,0.4844]
[1754004951024,0.4413,3707.7,3706.7,0.4844]
[1754004951222,0.02,3707.9,3706.7,0.4844]
[1754004951478,0.1352,3707.5,3707.0,0.1352]
[1754004951765,0.1352,3707.5,3707.1,0.4844]
[1754004952460,0.02,3707.9,3707.2,0.4844]
[1754004952631,0.1352,3707.6,3707.2,0.4844]
[1754004952859,0.1352,3707.6,3707.0,0.1352]
[1754004953060,0.1352,3707.6,3707.3,0.4844]
[1754004953662,0.1352,3707.6,3707.0,0.1352]
[1754004953663,1.4462,3707.5,3707.0,0.1352]
[1754004953887,0.1352,3707.1,3705.1,0.1552]
[1754004954023,3.55,3706.9,3705.7,0.4844]
[1754004954224,3.0,3706.7,3705.7,0.4844]
[1754004954767,3.0,3706.7,3705.1,0.02]
[1754004954768,0.1352,3705.8,3705.2,0.1352]
[1754004955334,0.1352,3705.8,3705.3,0.4844]
[1754004955864,0.1352,3705.8,3705.2,0.1352]
[1754004956036,0.1352,3705.8,3705.4,0.4844]
[1754004956433,0.1352,3705.8,3705.2,0.1352]
[1754004957347,0.1352,3705.8,3705.3,0.4844]
[1754004957527,0.1352,3705.8,3705.4,0.4844]
[1754004957723,0.1352,3705.8,3705.5,0.4844]
[1754004958141,0.1352,3705.8,3705.6,0.4844]
[1754004958339,0.1352,3705.8,3705.2,0.1352]
[1754004958569,3.4549,3705.7,3705.1,0.02]
[1754004958765,0.1352,3705.3,3705.1,0.02]
[1754004960687,0.8962,3705.2,3705.1,0.02]
[1754004960884,0.1352,3705.3,3705.1,0.02]
[1754004961071,0.4413,3705.2,3705.1,0.02]
[1754004961475,0.8962,3705.2,3705.1,0.02]
[1754004961683,0.4413,3705.2,3705.1,0.02]
[1754004962193,0.1352,3705.3,3705.1,0.02]
[1754004963152,3.92993637,3705.2,3705.1,0.02]
[1754004963359,3.8962,3705.2,3705.1,0.02]
[1754004963951,3.0,3705.2,3705.1,0.02]
[1754004964157,3.1352,3705.2,3705.1,0.02]
[1754004967083,0.4413,3706.3,3705.1,0.6396]
[1754004967281,0.1352,3705.6,3705.1,0.6396]
[1754004967481,0.1352,3705.6,3705.1,0.1552]
[1754004967662,0.1352,3705.6,3705.2,0.4844]
[1754004967862,0.1352,3705.6,3705.1,0.1552]
[1754004968072,0.1352,3705.6,3705.3,0.4844]
[1754004968567,0.1352,3705.6,3705.4,0.4844]
[1754004968769,0.20550028,3706.4,3705.5,0.01347961]
[1754004968997,30.0,3706.0,3705.1,0.02]
[1754004969307,0.55,3705.4,3705.1,0.02]
[1754004969612,0.8962,3705.9,3705.1,0.02]
[1754004969798,0.8962,3705.3,3705.1,0.02]
[1754004970000,0.03373637,3705.2,3705.1,0.02]
[1754004970309,0.92993637,3705.2,3705.1,0.02]
[1754004970465,1.47993637,3705.2,3705.1,0.02]
[1754004971276,34.47993637,3705.2,3705.1,0.02]
[1754004971503,37.2862,3705.2,3705.1,0.02]
[1754004972310,0.55,3704.5,3704.1,0.02]
[1754004972519,3.0,3704.2,3704.1,0.02]
[1754004972669,0.8962,3705.1,3704.2,0.4844]
[1754004972670,3.0,3704.9,3704.2,0.4844]
[1754004972873,0.55,3705.0,3704.1,0.02]
[1754004973181,30.0,3704.9,3704.1,0.02]
[1754004973504,0.4413,3705.5,3704.2,0.4844]
[1754004974008,0.4413,3705.5,3704.3,0.01349345]
[1754004974306,0.4413,3706.2,3704.4,0.6399]
[1754004974472,3.0,3705.7,3704.4,0.4844]
[1754004974671,0.4413,3705.6,3704.4,0.4844]
[1754004975614,4.498,3706.2,3704.5,0.16899054]
[1754004975615,0.4413,3706.0,3704.5,0.16899054]
[1754004975934,0.4413,3706.0,3704.6,0.4844]
[1754004976589,0.4549,3706.2,3704.6,0.4844]
[1754004976791,30.0,3706.3,3704.7,0.01348615]
[1754004976994,3.0,3706.2,3704.8,0.4949]
[1754004977385,3.4367,3706.4,3704.8,0.4949]
[1754004977620,3.9008,3706.4,3704.8,0.4949]
[1754004977984,3.0,3706.2,3704.8,0.4949]
[1754004978181,0.03372817,3706.1,3704.8,0.4949]
[1754004978426,0.4367,3706.0,3704.8,0.4949]
[1754004978982,3.0,3706.4,3704.9,0.16898325]
[1754004979242,0.1352,3705.8,3705.3,0.1352]
[1754004979517,0.1352,3705.8,3704.1,3.02]
[1754004979518,0.4367,3705.8,3704.8,0.4949]
[1754004979722,0.1352,3705.6,3705.0,0.1352]
[1754004979934,0.1352,3705.6,3705.1,0.4949]
[1754004980088,0.1352,3705.6,3705.2,0.4949]
[1754004980487,0.1352,3705.8,3705.3,0.6301]
[1754004980719,0.1352,3705.8,3704.7,4.484]
[1754004980899,0.03373181,3705.7,3704.6,0.4949]
[1754004981104,0.1352,3705.0,3704.5,0.1352]
[1754004981321,0.1352,3705.0,3704.6,0.4949]
[1754004981625,0.1352,3705.0,3704.7,0.4949]
[1754004981790,0.1352,3705.0,3704.5,0.1352]
[1754004981996,0.1352,3705.0,3704.6,0.4949]
[1754004983019,0.1352,3705.0,3704.7,0.4949]
[1754004983227,0.1352,3705.0,3704.5,0.1352]
[1754004983399,0.4641,3705.3,3704.2,4.9769]
[1754004983609,0.1352,3704.8,3704.3,0.1352]
[1754004983795,0.4367,3704.9,3704.3,0.1352]
[1754004983796,0.03374092,3704.7,3704.3,0.1352]
[1754004983995,0.03374092,3704.7,3704.1,0.02]
[1754004983996,0.1352,3704.4,3704.1,0.02]
[1754004984433,0.1352,3704.4,3704.2,0.4949]
[1754004984632,0.1352,3704.4,3704.3,0.1555]
[1754004985171,0.1352,3705.2,3704.3,0.6301]
[1754004985357,0.1352,3705.2,3704.3,0.1352]
[1754004985498,3.0,3706.0,3704.4,0.50839454]
[1754004985854,0.1352,3705.5,3704.9,0.1352]
[1754004986049,0.4641,3706.3,3705.0,0.5083858]
[1754004986343,0.1352,3705.7,3705.1,0.1352]
[1754004988253,0.1352,3705.8,3705.3,0.1352]
[1754004988798,0.1352,3705.8,3705.4,0.4949]
[1754004988997,0.1352,3706.3,3705.7,0.1352]
[1754004989261,0.25133151,3706.2,3705.7,0.6301]
[1754004989543,0.25133151,3706.2,3705.8,0.4949]
[1754004989730,0.25133151,3706.2,3705.9,0.1352]
[1754004989910,0.25133151,3706.1,3706.0,0.4949]
[1754004990110,0.4367,3706.8,3706.0,0.4949]
[1754004990325,0.25137783,3706.7,3706.0,0.4949]
[1754004990590,0.9008,3706.6,3705.0,4.9589]
[1754004990819,1.70217783,3706.5,3705.0,4.9589]
[1754004991052,3.0,3706.1,3704.5,0.4949]
[1754004991194,3.0,3705.9,3704.2,0.4949]
[1754004991400,3.0,3705.5,3704.2,0.4949]
[1754004991599,30.0,3705.1,3703.4,6.9819]
[1754004991919,30.0,3704.7,3703.3,0.4949]
[1754004992096,33.0,3704.2,3702.6,0.4949]
[1754004992294,3.0,3704.1,3702.6,0.4949]
[1754004992492,0.0337473,3704.0,3702.6,0.4949]
[1754004992697,0.0337473,3704.0,3702.2,4.464]
[1754004992698,0.9008,3704.1,3702.7,0.01351641]
[1754004992932,0.13235554,3704.4,3703.2,0.01351751]
[1754004993202,0.4367,3704.6,3703.3,0.4949]
[1754004993410,0.4367,3704.6,3703.3,0.50841021]
[1754004993630,30.0,3705.1,3703.3,7.00746447]
[1754004993840,30.0,3705.1,3703.4,0.4949]
[1754004993841,0.4367,3705.1,3703.4,0.4949]
[1754004994130,0.50237194,3705.0,3703.5,0.01350511]
[1754004994376,0.50237194,3704.9,3703.6,0.4949]
[1754004994498,0.50237194,3704.8,3703.7,0.01350438]
[1754004994694,0.4367,3705.1,3703.8,0.4949]
[1754004994995,30.0,3705.0,3703.9,0.01350074]
[1754004995238,0.4367,3705.1,3703.8,0.4949]
[1754004995406,0.4641,3705.0,3703.4,4.464]
[1754004995609,0.4367,3704.9,3703.4,4.335168]
[1754004996096,0.25123326,3704.8,3703.5,0.4949]
[1754004996299,0.25123326,3704.8,3703.5,6.99395426]
[1754004996536,0.50225737,3704.7,3703.6,0.4949]
[1754004996739,0.50232062,3704.6,3703.6,0.4949]
[1754004997057,3.0,3705.2,3703.6,0.4949]
[1754004997203,0.4367,3705.0,3703.6,0.4949]
[1754004997515,0.4641,3704.9,3703.6,0.4949]
[1754004997700,0.4367,3705.0,3703.7,0.01350365]
[1754004997895,0.9008,3705.0,3703.6,0.4949]
[1754004998105,0.4367,3705.0,3703.7,0.01350365]
[1754004998310,0.5023071,3704.9,3703.8,0.4949]
[1754004998511,0.53599727,3704.8,3703.5,4.464]
[1754004998744,0.47044001,3704.8,3703.5,4.464]
[1754004998938,0.4367,3704.8,3703.5,4.464]
[1754004999713,0.34025708,3705.5,3703.6,0.5084062]
[1754004999913,0.1352,3704.7,3704.2,0.1352]
[1754005000110,0.1352,3705.0,3704.5,0.1352]
[1754005000551,0.1352,3705.0,3704.5,0.6301]
[1754005000853,0.50220964,3704.9,3704.5,0.6301]
[1754005001060,0.4367,3705.7,3704.6,0.4949]
[1754005001351,0.1352,3705.1,3704.6,0.4949]
[1754005002367,0.1352,3705.4,3704.8,0.1352]
[1754005002574,0.50236532,3705.3,3704.8,0.1352]
[1754005002726,0.1352,3705.4,3704.9,0.50838762]
[1754005003059,0.50224407,3705.3,3705.0,0.4949]
[1754005003260,0.25111864,3705.2,3704.6,0.4949]
[1754005003420,0.02,3705.9,3704.7,6.49905426]
[1754005003623,0.02,3705.9,3705.1,0.1352]
[1754005003859,0.52235532,3705.9,3705.0,0.1352]
[1754005004155,0.1352,3705.6,3705.0,0.1352]
[1754005004459,1.43688895,3705.5,3704.4,0.4949]
[1754005004663,1.43688895,3705.5,3703.9,0.4949]
[1754005004664,0.1352,3704.9,3703.9,0.4949]
[1754005004849,0.02,3705.9,3703.9,0.4949]
[1754005005165,0.1352,3704.7,3704.2,0.1352]
[1754005005324,0.9008,3704.6,3704.0,0.1352]
[1754005005656,0.47044274,3704.5,3703.1,0.02]
[1754005005963,0.1352,3703.6,3703.1,0.02]
[1754005006167,0.1352,3703.6,3703.1,0.1552]
[1754005006336,0.9008,3704.5,3703.2,0.48432005]
[1754005006537,0.1352,3703.7,3703.1,0.1552]
[1754005008435,0.471,3704.5,3703.2,0.48432006]
[1754005008667,0.471,3704.5,3703.3,0.1352]
[1754005008668,0.1352,3703.9,3703.3,0.1352]
[1754005010566,0.1352,3704.2,3703.6,0.1352]
[1754005010865,0.1352,3704.4,3703.7,0.4708]
[1754005011047,0.1352,3704.4,3703.8,0.1352]
[1754005011555,0.1352,3704.1,3703.6,0.1352]
[1754005012171,0.471,3704.9,3703.7,0.4708]
[1754005012326,0.1352,3704.5,3704.0,0.1352]
[1754005012523,0.6062,3704.5,3704.0,0.1352]
[1754005013151,0.9304,3704.4,3703.2,0.4708]
[1754005013355,0.1352,3704.2,3703.7,0.1352]
[1754005014277,0.471,3704.1,3703.7,0.1352]
[1754005014476,0.1352,3703.9,3703.4,0.1352]
[1754005014881,0.1352,3703.9,3703.4,0.606]
[1754005015357,0.1352,3703.9,3703.5,0.4708]
[1754005015562,0.471,3704.4,3703.6,0.01351276]
[1754005015880,0.1352,3704.6,3704.0,0.1352]
[1754005016447,0.471,3705.4,3704.1,0.0135022]
[1754005016646,0.1352,3704.9,3704.4,0.1352]
[1754005017389,0.02,3705.9,3704.8,0.1352]
[1754005017390,0.1352,3705.3,3704.8,0.1352]
[1754005017963,0.1352,3705.3,3704.9,0.4708]
[1754005018269,0.1352,3705.3,3704.8,0.1352]
[1754005018653,0.02,3705.9,3704.9,0.48428835]
[1754005018869,0.02,3705.9,3705.1,0.1352]
[1754005019062,0.1352,3705.7,3705.1,0.1352]
[1754005019261,0.50219746,3705.6,3705.1,0.1352]
[1754005019466,0.50219746,3705.5,3705.1,0.1352]
[1754005019687,0.1352,3705.7,3705.1,0.1352]
[1754005019851,0.50234952,3705.6,3705.1,0.1352]
[1754005020053,0.1352,3705.7,3705.1,0.1352]
[1754005020476,0.02,3705.9,3705.1,0.4708]
[1754005020687,0.1552,3705.9,3705.3,0.1352]
[1754005021596,0.02,3705.9,3705.6,6.49905426]
[1754005021797,0.02,3705.9,3705.8,0.1352]
[1754005022172,0.02,3705.9,3705.8,0.7815]
[1754005022896,0.02,3705.9,3705.8,0.606]
[1754005023067,0.02,3705.9,3705.8,0.61947342]
[1754005023273,0.02,3705.9,3705.8,0.606]
[1754005024194,0.02,3705.9,3705.8,0.1352]
[1754005025332,0.9504,3705.9,3705.8,0.1352]
[1754005025476,1.0856,3705.9,3705.3,4.46]
[1754005025662,0.6262,3705.9,3705.4,0.1352]
[1754005025859,0.9304,3705.8,3705.4,0.1352]
[1754005026175,0.9304,3705.7,3705.3,0.1352]
[1754005026376,0.9304,3705.6,3705.3,0.1352]
[1754005026877,0.4594,3705.6,3705.3,0.1352]
[1754005027073,0.471,3705.5,3705.3,0.1352]
[1754005027429,0.1552,3705.9,3705.4,0.4708]
[1754005027559,0.1552,3705.9,3705.5,0.01347743]
[1754005027560,0.02,3705.9,3705.5,0.01347743]
[1754005027764,0.02,3705.9,3705.4,4.46]
[1754005028004,0.4594,3705.8,3704.5,12.98705426]
[1754005028205,0.1352,3705.6,3705.1,4.46]
[1754005028402,0.9304,3705.5,3705.1,4.46]
[1754005028571,0.02,3705.9,3705.2,0.01348362]
[1754005028906,0.02,3705.9,3705.7,0.1352]
[1754005029211,0.6262,3705.9,3705.3,0.1352]
[1754005029805,0.6262,3705.9,3705.1,4.459]
[1754005029806,0.491,3705.9,3705.1,4.459]
[1754005030114,0.1352,3705.5,3705.0,4.5942]
[1754005030270,0.471,3705.8,3705.1,0.01348471]
[1754005030475,0.1352,3705.7,3705.2,0.1352]
[1754005030678,0.471,3705.6,3705.2,0.1352]
[1754005030898,0.471,3705.6,3705.1,0.1352]
[1754005031926,0.5946,3705.7,3705.0,3.647281]
[1754005031927,0.02,3705.9,3705.0,3.647281]
[1754005032073,0.1352,3705.8,3705.3,0.1352]
[1754005032609,0.9304,3705.7,3704.5,13.45785426]
[1754005032828,0.1352,3705.3,3704.8,0.1352]
[1754005033807,0.1352,3705.6,3705.1,0.1352]
[1754005034007,0.1352,3705.6,3705.2,0.4708]
[1754005034989,0.02,3705.9,3705.3,0.4842818]
[1754005035188,0.02,3705.9,3705.5,0.1352]
[1754005035706,0.471,3705.8,3705.4,0.1352]
[1754005035911,0.02,3705.9,3705.4,0.1352]
[1754005036094,0.471,3705.8,3705.4,0.1352]
[1754005037010,0.02,3705.9,3705.4,0.1352]
[1754005037511,0.9113,3705.8,3705.2,4.457]
[1754005037712,0.1352,3705.4,3704.8,0.1352]
[1754005037916,0.4526,3705.3,3704.8,0.1352]
[1754005038589,0.9113,3705.2,3704.8,0.1352]
[1754005038916,1.0465,3705.1,3704.6,0.1352]
[1754005039213,0.4526,3705.0,3704.6,0.1352]
[1754005039520,0.1352,3705.1,3704.8,0.55]
[1754005039720,0.02,3705.9,3704.9,0.6348]
[1754005039875,0.02,3705.9,3705.1,6.49905426]
[1754005040211,0.02,3705.9,3705.2,4.457]
[1754005040615,0.02,3705.9,3705.1,6.49905426]
[1754005040616,0.02,3705.9,3705.3,0.47277961]
[1754005040780,0.02,3705.9,3705.4,4.457]
[1754005041118,0.02,3705.9,3705.5,0.01347743]
[1754005041279,0.02,3705.9,3705.1,6.49905426]
[1754005041479,0.02,3705.9,3705.2,4.456]
[1754005041708,0.02,3705.9,3705.5,0.4593]
[1754005042026,0.02,3705.9,3705.2,4.456]
[1754005042506,0.02,3705.9,3705.3,4.456]
[1754005043508,0.02,3705.9,3705.2,0.4593]
[1754005043817,0.02,3705.9,3704.8,0.4593]
[1754005043980,0.02,3705.9,3705.3,4.456]
[1754005044577,0.02,3705.9,3704.8,0.4593]
[1754005044801,0.02,3705.9,3704.5,6.49905426]
[1754005044802,0.9113,3705.8,3704.9,4.456]
[1754005045019,0.4587,3705.8,3704.5,0.4593]
[1754005045202,0.9113,3705.7,3704.2,0.4593]
[1754005045403,0.02,3705.9,3704.5,4.455]
[1754005045404,0.9113,3705.6,3704.5,4.455]
[1754005045620,0.94503363,3705.5,3703.6,6.49905426]
[1754005045780,30.9113,3705.4,3703.6,6.95835426]
[1754005045985,0.94503546,3705.3,3703.7,4.455]
[1754005046210,0.9113,3705.2,3703.7,4.455]
[1754005046520,0.03373728,3705.1,3703.6,6.95835426]
[1754005046738,0.9113,3705.1,3703.7,4.455]
[1754005047004,0.9113,3705.1,3704.2,6.49905426]
[1754005047005,0.4526,3705.1,3704.2,6.49905426]
[1754005047363,0.4526,3705.1,3704.1,0.4593]
[1754005048059,0.4587,3705.0,3704.1,0.4593]
[1754005048658,0.4587,3705.0,3703.6,6.49905426]
[1754005048961,0.4526,3704.9,3703.8,0.4593]
[1754005049650,0.1352,3704.7,3704.2,0.1352]
[1754005050029,0.4526,3705.6,3704.3,11.41335426]
[1754005050219,0.1352,3705.2,3704.5,0.1352]
[1754005050419,0.02,3705.9,3704.9,0.1352]
[1754005050420,0.1352,3705.5,3704.9,0.1352]
[1754005050615,0.1352,3704.8,3704.4,4.455]
[1754005051230,0.1352,3704.8,3704.5,0.47279637]
[1754005051460,0.1352,3704.8,3704.6,0.4593]
[1754005051666,0.1352,3704.8,3704.7,0.01349418]
[1754005051868,0.4587,3705.4,3704.6,0.4593]
[1754005052039,0.4587,3705.4,3704.5,0.1352]
[1754005052040,0.1352,3705.0,3704.5,0.1352]
[1754005052365,0.9113,3704.9,3702.2,9.3701332]
[1754005052539,0.1352,3704.5,3703.8,4.454]
[1754005052738,0.1352,3704.5,3703.9,0.1352]
[1754005052739,0.5878,3704.5,3703.9,0.1352]
[1754005055265,0.55,3705.5,3703.1,0.4793]
[1754005055266,0.94504365,3704.4,3703.1,0.4793]
[1754005055471,0.1352,3704.0,3703.4,4.5882]
[1754005055676,0.9113,3704.7,3703.5,0.47281313]
[1754005055965,0.1352,3704.4,3703.9,0.1352]
[1754005056144,0.9113,3704.3,3703.9,0.1352]
[1754005056554,0.4526,3704.3,3703.9,0.1352]
[1754005056956,0.1352,3704.4,3703.9,0.1352]
[1754005057263,0.9113,3704.3,3703.9,0.1352]
[1754005057471,0.4526,3704.3,3703.9,0.1352]
[1754005057666,0.1352,3704.4,3704.0,0.4593]
[1754005057964,0.1352,3704.6,3704.1,0.1352]
[1754005058132,0.4526,3704.4,3704.1,0.1352]
[1754005058337,0.4526,3704.3,3704.1,0.1352]
[1754005058567,0.9113,3704.3,3703.7,4.453]
[1754005058865,0.9113,3704.3,3703.9,0.1352]
[1754005059064,0.4526,3704.3,3703.9,0.1352]
[1754005059370,0.9113,3704.2,3703.9,0.1352]
[1754005059534,0.4526,3704.1,3703.9,0.1352]
[1754005060048,0.13610448,3705.3,3703.5,0.1352]
[1754005060049,1.0465,3704.0,3703.5,0.1352]
[1754005060246,0.9113,3703.9,3703.1,4.473]
[1754005060464,0.1352,3703.7,3703.2,0.1352]
[1754005060700,0.4526,3703.6,3703.2,0.1352]
[1754005060968,0.1352,3703.4,3703.1,0.02]
[1754005061373,0.4526,3703.3,3703.1,0.02]
[1754005061677,0.4526,3703.2,3703.1,0.02]
[1754005061841,1.0465,3703.2,3703.1,0.02]
[1754005062679,0.5878,3703.2,3703.1,0.02]
[1754005062980,1.0465,3703.2,3703.1,0.02]
[1754005063147,0.1352,3703.2,3703.1,0.02]
[1754005063560,0.5878,3703.2,3703.1,0.02]
[1754005064757,0.1352,3703.2,3703.1,0.02]
[1754005065140,0.4526,3704.0,3703.1,0.4793]
[1754005065340,0.1352,3703.9,3703.4,0.1352]
[1754005065577,0.4526,3703.8,3703.4,0.1352]
[1754005065981,0.1352,3703.9,3703.4,0.1352]
[1754005066694,0.4318,3704.5,3703.5,0.49511386]
[1754005066862,0.1352,3704.7,3703.8,0.1352]
[1754005067056,0.1352,3704.7,3704.2,0.1352]
[1754005067283,0.4318,3704.6,3704.2,0.1352]
[1754005067695,0.9169,3704.5,3703.5,0.4816]
[1754005067904,0.1352,3704.4,3703.8,0.1352]
[1754005068474,0.9169,3704.3,3703.4,4.45]
[1754005068679,0.1352,3704.1,3703.5,0.1352]
[1754005069003,0.4318,3704.0,3703.2,0.4816]
[1754005069200,0.1352,3703.9,3703.4,0.1352]
[1754005069592,0.95064912,3703.8,3703.1,0.02]
[1754005069808,0.55,3704.7,3703.1,0.02]
[1754005069809,3.0,3703.5,3703.1,0.02]
[1754005070002,0.9169,3703.4,3703.1,0.02]
[1754005070199,30.0,3703.1,3702.1,0.1552]
[1754005070365,0.1352,3702.2,3702.1,0.02]
[1754005070566,0.1352,3702.2,3699.0,2.7795603]
[1754005070567,0.55,3701.9,3700.2,0.1352]
[1754005070802,0.55,3701.1,3700.1,0.00519677]
[1754005070985,0.1352,3700.2,3700.1,0.00519677]
[1754005071501,1.0521,3700.2,3700.1,0.00519677]
[1754005073111,1.0521,3700.2,3700.1,0.00519677]
[1754005073618,0.1352,3700.2,3700.1,0.00519677]
[1754005073986,0.4318,3701.0,3700.1,0.00519677]
[1754005074188,0.4318,3700.6,3700.1,0.00519677]
[1754005074388,0.1352,3700.2,3700.1,0.00519677]
[1754005074607,0.9169,3701.1,3700.2,0.4816]
[1754005074794,0.1352,3700.6,3700.2,0.4816]
[1754005075212,0.4318,3700.5,3700.1,0.00519677]
[1754005075413,0.55,3701.4,3700.1,0.00519677]
[1754005075618,0.4318,3701.0,3700.1,0.00519677]
[1754005075918,0.1352,3700.3,3700.1,0.00519677]
[1754005076092,0.1352,3700.7,3700.1,0.14039677]
[1754005076803,0.1352,3700.3,3700.1,0.00519677]
[1754005077218,0.567,3700.3,3700.1,0.00519677]
[1754005077416,0.4318,3700.2,3700.1,0.00519677]
[1754005077615,0.1352,3700.3,3700.1,0.00519677]
[1754005078211,0.4318,3700.2,3700.1,0.00519677]
[1754005078395,0.9169,3700.2,3700.1,0.00519677]
[1754005078595,0.4318,3700.2,3700.1,0.00519677]
[1754005079533,0.9169,3700.2,3700.1,0.00519677]
[1754005080930,0.1352,3700.2,3700.1,0.00519677]
[1754005083131,0.4318,3700.9,3700.1,0.48679677]
[1754005083337,0.1352,3700.3,3700.1,0.48679677]
[1754005083537,0.1352,3700.3,3700.1,0.00519677]
[1754005083738,34.4669,3700.2,3700.1,0.00519677]
[1754005084037,34.4669,3700.2,3699.1,0.02]
[1754005084038,33.55,3700.1,3699.1,0.02]
[1754005084240,3.55,3699.7,3699.1,0.02]
[1754005084404,0.1352,3699.2,3699.1,0.02]
[1754005084652,33.6852,3699.2,3699.1,0.02]
[1754005084985,4.0521,3699.2,3699.1,0.02]
[1754005085739,34.0521,3699.2,3699.1,0.02]
[1754005086004,0.1352,3699.2,3699.1,0.02]
[1754005086481,0.4318,3699.7,3699.1,0.02]
[1754005086690,0.1352,3699.3,3699.1,0.02]
[1754005086870,0.4318,3700.2,3699.1,0.5016]
[1754005087175,0.1352,3699.7,3699.1,0.6368]
[1754005087878,0.1352,3699.7,3699.1,0.1552]
[1754005088042,0.4851,3699.7,3699.1,0.02]
[1754005088244,0.1352,3699.2,3699.1,0.02]
[1754005088794,1.0521,3699.2,3699.1,0.02]
[1754005089105,0.1352,3699.2,3699.1,0.02]
[1754005089653,1.6021,3699.2,3699.1,0.02]
[1754005089857,30.0,3699.1,3698.1,0.02]
[1754005090058,0.9169,3699.1,3698.1,0.02]
[1754005090359,0.1352,3698.2,3698.1,0.02]
[1754005090555,0.9169,3699.1,3698.1,0.02]
[1754005090795,0.1352,3698.3,3698.1,0.02]
[1754005091176,0.1352,3698.3,3698.1,0.5016]
[1754005091375,0.1352,3698.3,3698.1,0.02]
[1754005091581,0.567,3698.3,3698.1,0.02]
[1754005091783,0.9169,3698.2,3698.1,0.02]
[1754005092302,0.4318,3698.7,3698.1,0.02]
[1754005093675,0.4318,3699.1,3698.1,0.02]
[1754005094959,0.51889291,3699.0,3698.1,0.02]
[1754005095184,0.4318,3699.1,3698.1,0.02]
[1754005095466,0.4851,3698.9,3698.1,0.02]
[1754005095895,0.46559474,3698.8,3698.1,0.02]
[1754005096307,0.4318,3698.8,3698.1,0.02]
[1754005096712,0.4817,3698.7,3698.1,0.02]
[1754005097199,0.49419657,3698.6,3698.1,0.02]
[1754005097399,0.4604,3698.6,3698.1,0.02]
[1754005097586,0.4604,3699.8,3698.2,0.4764]
[1754005097791,0.4604,3700.3,3698.8,6.51029142]
[1754005098116,0.24857376,3700.2,3699.4,6.51029142]
[1754005098311,0.24857376,3700.1,3699.5,0.4764]
[1754005098510,0.24857376,3700.0,3699.5,0.4764]
[1754005098713,0.4804,3700.9,3699.6,0.2607]
[1754005098920,0.24881775,3700.8,3699.6,0.4764]
[1754005099217,30.0,3700.6,3699.1,0.4764]
[1754005099509,3.55,3700.3,3698.4,4.449]
[1754005099708,30.0,3700.1,3698.1,0.4964]
[1754005099889,30.0,3699.9,3698.1,0.4964]
[1754005100206,30.0,3699.7,3698.4,4.9254]
[1754005100425,1.19118316,3699.6,3698.4,4.9254]
[1754005100576,0.24908316,3699.5,3698.4,4.9254]
[1754005100876,1.19118316,3699.4,3698.1,0.02]
[1754005101076,1.19118316,3699.3,3698.4,4.449]
[1754005101277,0.24908316,3699.2,3698.4,4.449]
[1754005101516,0.9421,3699.3,3698.4,4.46260329]
[1754005101688,0.1352,3698.7,3698.4,4.449]
[1754005101883,0.1352,3698.7,3698.5,4.9254]
[1754005102317,0.1352,3698.9,3698.6,0.4764]
[1754005102504,0.1352,3698.9,3698.7,0.4764]
[1754005103116,0.1352,3698.9,3698.5,4.449]
[1754005103317,0.1352,3699.2,3698.8,0.4764]
[1754005103523,0.1352,3699.2,3698.6,0.6116]
[1754005103724,0.1352,3698.9,3698.7,4.448]
[1754005103933,0.4604,3698.9,3698.7,4.448]
[1754005104138,0.1352,3698.8,3698.7,4.448]
[1754005104493,0.1352,3698.8,3698.7,4.9244]
[1754005104687,0.1352,3698.8,3698.7,4.448]
[1754005105292,0.1352,3698.8,3698.3,6.9744]
[1754005105488,0.1352,3698.8,3698.4,4.93800694]
[1754005105903,0.1352,3698.8,3698.5,0.4764]
[1754005106126,0.9421,3698.7,3698.1,0.02]
[1754005106435,0.1352,3698.2,3698.1,0.02]
[1754005106933,1.0773,3698.2,3698.1,0.02]
[1754005107226,0.5956,3698.2,3698.1,4.471]
[1754005107425,0.1352,3698.2,3698.1,4.471]
[1754005107631,0.1352,3698.2,3698.1,4.47]
[1754005107790,0.1352,3698.2,3698.1,0.02]
[1754005108194,0.1352,3698.3,3698.1,4.9454]
[1754005108435,0.1352,3698.5,3698.1,4.9454]
[1754005108600,0.2496107,3698.4,3698.1,4.469]
[1754005108804,0.1352,3698.6,3698.2,0.49001279]